fUSD/lending_fUSD_20240515
["ID","MTS","AMOUNT","RATE_DAILY","PERIOD"]
[327080123,1715792256685,-37861.41052203,0.00011,2]
[327080124,1715792257963,157.83487896,8.866e-05,2]
[327080125,1715792287854,181.46,8.736e-05,2]
[327080127,1715792337236,-507.2,0.00010751,2]
[327080128,1715792337261,-572.90279862,0.00011,2]
[327080129,1715792337287,-202.05,0.0001113,2]
[327080130,1715792337323,-3000.0,0.0001133,2]
[327080131,1715792337352,-10000.0,0.00011353,2]
[327080132,1715792337380,-184.570636,0.00011456,2]
[327080133,1715792337406,-183.502474,0.00011456,2]
[327080134,1715792337433,-2917.491513,0.00011456,2]
[327080135,1715792337461,-339.233236,0.00011456,2]
[327080136,1715792337489,-12934.402976,0.00011456,2]
[327080137,1715792337517,-309.514216,0.00011456,2]
[327080138,1715792337543,-6060.898748,0.00011456,2]
[327080139,1715792337571,-210.507,0.00011499,2]
[327080140,1715792337598,-183.502474,0.00011599,2]
[327080141,1715792337625,-2917.491513,0.00011599,2]
[327080142,1715792337652,-339.233236,0.00011599,2]
[327080143,1715792337678,-12934.402976,0.00011599,2]
[327080144,1715792337704,-309.514216,0.00011599,2]
[327080145,1715792337739,-6060.898748,0.00011599,2]
[327080146,1715792338411,4208.46262265,0.00011353,2]
[327080147,1715792339848,250.0,0.00010905,2]
[327080148,1715792341497,2416.469174,0.00011398,2]
[327080150,1715792589030,181.84,8.754e-05,2]
[327080172,1715793032079,-272.61333472,0.00010444,2]
[327080173,1715793032089,-707.49391328,0.00010543,2]
[327080174,1715793032099,-190.62,0.00010544,2]
[327080175,1715793032108,-594.24,0.00010546,2]
[327080176,1715793032117,-250.0,0.00010618,2]
[327080177,1715793032126,-150.0,0.0001062,2]
[327080178,1715793032135,-3690.70093891,0.00010621,2]
[327080179,1715793032247,-4881.23289356,0.00010621,2]
[327080180,1715793032258,-5766.96427622,0.00010621,2]
[327080181,1715793032269,-3503.14189131,0.00010621,2]
[327080182,1715793032278,-158.33,0.00010653,2]
[327080183,1715793032287,-1721.92,0.00010696,2]
[327080184,1715793032297,-158.33,0.00010703,2]
[327080185,1715793032306,-158.33,0.00010753,2]
[327080186,1715793032316,-158.33,0.00010804,2]
[327080187,1715793032325,-158.33,0.00010854,2]
[327080188,1715793032334,-158.33,0.00010905,2]
[327080189,1715793032343,-158.33,0.00010955,2]
[327080190,1715793032352,-169.49,0.00010958,2]
[327080191,1715793032361,-158.33,0.00011006,2]
[327080192,1715793032371,-181.84,0.00011018,2]
[327080193,1715793032380,-499.99,0.00011018,2]
[327080194,1715793032389,-181.85,0.00011018,2]
[327080195,1715793032398,-167.7297247,0.0001103,2]
[327080196,1715793032407,-158.33,0.00011056,2]
[327080197,1715793032416,-158.33,0.00011107,2]
[327080198,1715793032426,-158.33,0.00011157,2]
[327080199,1715793032435,-167.72972467,0.00011158,2]
[327080200,1715793032444,-158.33,0.00011208,2]
[327080201,1715793032453,-1325.91046335,0.00011233,2]
[327080202,1715793032462,-167.72972467,0.00011287,2]
[327080203,1715793032471,-167.72972467,0.00011415,2]
[327080204,1715793032480,-150.99,0.00011444,2]
[327080205,1715793032489,-304.7,0.000115,2]
[327080206,1715793032498,-167.72972467,0.00011543,2]
[327080208,1715793032507,-3000.0,0.00011599,2]
[327080210,1715793032516,-2655.83634011,0.0001164,2]
[327080212,1715793032525,-500.0,0.00011642,2]
[327080214,1715793032535,-2459.893,0.00011648,2]
[327080217,1715793032544,-1059.0,0.00011648,2]
[327080219,1715793032553,-167.72972467,0.00011672,2]
[327080223,1715793032563,-2379.16507011,0.000117,2]
[327080225,1715793032572,-2917.491513,0.00011742,2]
[327080228,1715793032581,-183.502474,0.00011742,2]
[327080231,1715793032590,-339.233236,0.00011742,2]
[327080234,1715793032599,-9021.52061903,0.00011742,2]
[327080237,1715793032612,-3912.88235697,0.00011742,2]
[327080239,1715793032621,-309.514216,0.00011742,2]
[327080241,1715793032630,-204.90706616,0.00011742,2]
[327080242,1715793032642,-5855.99168184,0.00011742,2]
[327080243,1715793032650,-169.3421,0.0001178,2]
[327080244,1715793032660,-21857.22647649,0.0001178,2]
[327080245,1715793032670,-1240.78981057,0.0001178,2]
[327080246,1715793032681,-626.85191041,0.0001178,2]
[327080247,1715793032695,-16237.52970253,0.0001178,2]
[327080248,1715793032704,-500.0,0.0001178,2]
[327080249,1715793032713,-491.86255257,0.0001178,2]
[327080250,1715793032721,-500.0,0.0001178,2]
[327080251,1715793032730,-192.79117258,0.0001178,2]
[327080252,1715793032739,-500.0,0.0001178,2]
[327080253,1715793032748,-295.65720001,0.0001178,2]
[327080254,1715793032758,-204.34279999,0.0001178,2]
[327080255,1715793032767,-500.0,0.0001178,2]
[327080256,1715793032776,-500.0,0.0001178,2]
[327080257,1715793032785,-357.87497278,0.0001178,2]
[327080258,1715793032794,-500.0,0.0001178,2]
[327080259,1715793032803,-500.0,0.0001178,2]
[327080260,1715793032812,-500.0,0.0001178,2]
[327080261,1715793032821,-500.0,0.0001178,2]
[327080262,1715793032830,-190.37702267,0.0001178,2]
[327080263,1715793032839,-503.72440295,0.0001178,2]
[327080264,1715793032848,-500.0,0.0001178,2]
[327080265,1715793032858,-500.0,0.0001178,2]
[327080266,1715793032867,-598.48604152,0.0001178,2]
[327080267,1715793032877,-31680.4369,0.00011785,2]
[327080268,1715793032886,-2500.0,0.00011785,2]
[327080269,1715793032895,-1000.0,0.00011799,2]
[327080270,1715793032905,-167.72972467,0.000118,2]
[327080271,1715793032914,-179.85424468,0.00011803,2]
[327080272,1715793032924,-594.24,0.00011865,2]
[327080273,1715793032938,-363.11807455,0.0001187,2]
[327080274,1715793032947,-41099.70180352,0.0001188,2]
[327080275,1715793032956,-2917.491513,0.00011886,2]
[327080276,1715793032965,-183.502474,0.00011886,2]
[327080277,1715793032975,-339.233236,0.00011886,2]
[327080278,1715793032984,-12934.402976,0.00011886,2]
[327080279,1715793032993,-309.514216,0.00011886,2]
[327080280,1715793033002,-6060.898748,0.00011886,2]
[327080281,1715793033014,-170.20693404,0.00011888,2]
[327080282,1715793033024,-500.0,0.00011889,2]
[327080283,1715793033033,-500.0,0.00011889,2]
[327080284,1715793033042,-500.0,0.00011889,2]
[327080285,1715793033051,-570.64,0.00011889,2]
[327080286,1715793033060,-500.0,0.00011889,2]
[327080287,1715793033069,-876.19,0.00011889,2]
[327080288,1715793033078,-1629.39,0.00011889,2]
[327080289,1715793033087,-500.0,0.00011889,2]
[327080290,1715793033096,-748.7,0.00011889,2]
[327080291,1715793033106,-500.0,0.00011889,2]
[327080292,1715793033116,-500.0,0.00011889,2]
[327080293,1715793033125,-500.0,0.00011889,2]
[327080294,1715793033134,-500.0,0.00011889,2]
[327080295,1715793033143,-182.3438453,0.0001189,2]
[327080296,1715793033152,-171.52880002,0.0001189,2]
[327080297,1715793033162,-200.01599054,0.0001189,2]
[327080298,1715793033170,-170.20693403,0.0001189,2]
[327080299,1715793033179,-162.94,0.0001189,2]
[327080300,1715793033188,-309.16,0.00011898,2]
[327080301,1715793033199,-168.52457004,0.00011898,2]
[327080302,1715793033208,-500.0,0.00011898,2]
[327080303,1715793033218,-500.0,0.00011898,2]
[327080304,1715793033226,-225.88,0.00011898,2]
[327080305,1715793033235,-500.0,0.00011898,2]
[327080306,1715793033244,-500.0,0.00011898,2]
[327080307,1715793033253,-500.0,0.00011898,2]
[327080308,1715793033262,-630.47,0.00011898,2]
[327080309,1715793033271,-500.0,0.00011898,2]
[327080310,1715793033280,-500.0,0.00011898,2]
[327080311,1715793033288,-500.0,0.00011898,2]
[327080312,1715793033298,-500.0,0.00011899,2]
[327080313,1715793033307,-214.74331389,0.00011899,2]
[327080314,1715793033316,-170.03568554,0.00011899,2]
[327080315,1715793033325,-584.69,0.00011899,2]
[327080316,1715793033334,-309.11,0.00011899,2]
[327080317,1715793033343,-500.0,0.00011899,2]
[327080318,1715793033352,-500.0,0.00011899,2]
[327080319,1715793033362,-500.0,0.00011899,2]
[327080320,1715793033371,-449.37000001,0.00011899,2]
[327080321,1715793033380,-500.0,0.00011899,2]
[327080322,1715793033389,-500.0,0.00011899,2]
[327080323,1715793033398,-500.0,0.00011899,2]
[327080324,1715793033407,-403.53742352,0.00011899,2]
[327080325,1715793033416,-500.0,0.00011899,2]
[327080326,1715793033426,-500.0,0.00011899,2]
[327080327,1715793033435,-500.0,0.00011899,2]
[327080328,1715793033444,-529.0409197,0.00011899,2]
[327080329,1715793033454,-500.0,0.00011899,2]
[327080330,1715793033464,-1086.76,0.00011899,2]
[327080331,1715793033473,-212.90277978,0.00011899,2]
[327080332,1715793033482,-500.0,0.00011899,2]
[327080333,1715793033492,-1216.01,0.00011899,2]
[327080334,1715793033501,-500.0,0.00011899,2]
[327080335,1715793033510,-500.0,0.00011899,2]
[327080336,1715793033519,-2226.0,0.000119,2]
[327080337,1715793033528,-200.0,0.000119,2]
[327080338,1715793033538,-1000.0,0.000119,2]
[327080339,1715793033547,-500.0,0.000119,2]
[327080340,1715793033556,-16704.48152829,0.000119,2]
[327080341,1715793033568,-6481.68123966,0.000119,2]
[327080342,1715793033579,-1997.4276,0.000119,2]
[327080343,1715793033590,-1042.16772,0.000119,2]
[327080344,1715793033601,-1309.51,0.000119,2]
[327080345,1715793033614,-1486.7837916,0.000119,2]
[327080359,1715793038144,-500.0,0.00011898,2]
[327080360,1715793038156,-3389.96530916,0.000119,2]
[327080361,1715793038167,-818.49731349,0.000119,2]
[327080362,1715793038178,-587.8734,0.000119,2]
[327080363,1715793038189,-308.66866659,0.000119,2]
[327080364,1715793038254,-500.0,0.00011899,2]
[327080365,1715793038264,-181.9999999,0.000119,2]
[327080366,1715793038275,-714.662132,0.000119,2]
[327080367,1715793038285,-11915.49999995,0.000119,2]
[327080368,1715793038296,-3124.65066495,0.000119,2]
[327080369,1715793038307,-416.7253945,0.000119,2]
[327080370,1715793038318,-3564.900492,0.000119,2]
[327080371,1715793038364,-318.76,0.000119,2]
[327080405,1715793040245,-378.18038268,0.000119,2]
[327080406,1715793040358,-1098.90001,0.000119,2]
[327080407,1715793040372,-3268.0669238,0.000119,2]
[327080408,1715793040383,-16253.02548796,0.000119,2]
[327080409,1715793040642,-3220.47496843,0.000119,2]
[327080410,1715793040654,-1146.51699869,0.000119,2]
[327080411,1715793041495,-382.00053894,0.00011899,2]
[327080412,1715793041507,-117.99946106,0.00011899,2]
[327080413,1715793041516,-1506.97553894,0.000119,2]
[327080442,1715793043448,-430.88089482,0.000119,2]
[327080443,1715793043546,-3255.9489,0.000119,2]
[327080447,1715793046106,-6254.38447975,0.00010543,2]
[327080448,1715793046116,-23520.93609025,0.000119,2]
[327080454,1715793046691,-975.525,0.000119,2]
[327080455,1715793059757,158.46539353,8.754e-05,2]
[327080456,1715793061589,288.72057434,8.754e-05,2]
[327080457,1715793062251,155.96100922,8.754e-05,2]
[327080462,1715793177161,-250.0,0.00010993,2]
[327080463,1715793177184,-164.98,0.00010993,2]
[327080464,1715793180843,200.0,0.00010971,2]
[327080465,1715793182522,471.66260885,0.00010992,2]
[327080466,1715793191798,163.65,9.064e-05,2]
[327080468,1715793242637,467.51,0.00010976,2]
[327080469,1715793275566,291.88,0.00010411,2]
[327080470,1715793280735,1990.31739115,6.798e-05,2]
[327080471,1715793280757,556.38294069,6.798e-05,2]
[327080472,1715793289574,357.905496,0.00010957,2]
[327080474,1715793308895,168.58,0.00010961,2]
[327080476,1715793393738,250.0,0.00010922,2]
[327080477,1715793459942,157.05,0.00010922,2]
[327080478,1715793460192,157.05,0.00010977,2]
[327080479,1715793471491,2353.03156331,0.0001,2]
[327080480,1715793471514,169.96843669,0.0001,2]
[327080481,1715793509453,1000.0,0.00010931,2]
[327080482,1715793534541,1788.4,0.00010931,2]
[327080483,1715793604053,250.0,0.00010854,2]
[327080485,1715793672570,155.46,9.031e-05,2]
[327080486,1715793752029,156.87,0.00010411,2]
[327080487,1715793757099,393.05217404,0.0001041,2]
[327080489,1715793817359,86.24938927,0.0001041,2]
[327080490,1715793817382,434.27095739,0.0001041,2]
[327080491,1715793861026,-4000.0,0.00011047,2]
[327080492,1715793885278,-4000.0,0.00011047,2]
[327080493,1715793887363,-4000.0,0.00011047,2]
[327080494,1715793888638,-4000.0,0.00011047,2]
[327080495,1715793889611,-4000.0,0.00011047,2]
[327080497,1715793908503,-393.05217404,0.00011046,2]
[327080498,1715793908525,-3606.94782596,0.00011047,2]
[327080499,1715793915032,-4000.0,0.00011047,2]
[327080500,1715793923576,-4000.0,0.00011047,2]
[327080501,1715793931171,-4000.0,0.00011047,2]
[327080503,1715793952503,-761.47947183,0.00011046,2]
[327080504,1715793952523,-2769.49217404,0.00011047,2]
[327080505,1715793991340,469.02835413,0.00010936,2]
[327080506,1715793991362,722.90164587,0.00010936,2]
[327080507,1715793992622,204.78018268,0.00011294,2]
[327080517,1715794065318,204.78018268,0.00011294,2]
[327080518,1715794108240,250.0,0.00010937,2]
[327080519,1715794132155,204.78018268,0.00011294,2]
[327080520,1715794191478,1000.0,0.00010946,2]
[327080521,1715794192568,1412.75780609,0.00010946,2]
[327080525,1715794234361,-1300.08001397,0.00010946,2]
[327080526,1715794234375,-373.5640333,0.00010946,2]
[327080527,1715794234399,-3707.81467469,0.00010946,2]
[327080528,1715794234412,-5205.78347195,0.00010946,2]
[327080529,1715794234423,-204.78018268,0.00011294,2]
[327080530,1715794234433,-155.46,0.00011295,2]
[327080531,1715794234447,-5647.8,0.00011388,2]
[327080532,1715794234458,-2616.54635215,0.00011388,2]
[327080533,1715794234469,-1296.68818184,0.00011389,2]
[327080534,1715794234480,-5180.54472656,0.00011389,7]
[327080535,1715794234491,-1052.763254,0.00011456,2]
[327080536,1715794234502,-283.192597,0.00011456,2]
[327080537,1715794234513,-166.477151,0.00011456,2]
[327080538,1715794234524,-601.08207,0.00011456,2]
[327080539,1715794234535,-186.336036,0.00011456,2]
[327080540,1715794234546,-296.735644,0.00011456,2]
[327080541,1715794234557,-1052.763254,0.00011599,2]
[327080542,1715794234568,-601.08207,0.00011599,2]
[327080543,1715794234579,-296.735644,0.00011599,2]
[327080544,1715794234590,-1052.763254,0.00011742,2]
[327080545,1715794234602,-601.08207,0.00011742,2]
[327080546,1715794234612,-296.735644,0.00011742,2]
[327080547,1715794234623,-1422.5127,0.0001178,2]
[327080548,1715794234634,-15319.23429047,0.0001178,2]
[327080549,1715794234648,-654.22,0.0001178,2]
[327080550,1715794234661,-463.7839458,0.0001178,2]
[327080555,1715794239109,-493.36756367,0.0001178,2]
[327080556,1715794239256,-5180.54472656,0.0001178,2]
[327080580,1715794240549,-298.80923892,0.0001178,2]
[327080587,1715794242074,-446.98999998,0.0001178,2]
[327080601,1715794243636,-5931.70918243,0.0001178,2]
[327080602,1715794243763,-2469.42255217,0.0001178,2]
[327080603,1715794243773,-3000.0,0.0001178,2]
[327080604,1715794243784,-401.6954,0.00011785,2]
[327080605,1715794243794,-404.44,0.00011785,2]
[327080606,1715794243805,-6109.2715,0.0001179,2]
[327080607,1715794243816,-1052.763254,0.00011886,2]
[327080608,1715794243827,-601.08207,0.00011886,2]
[327080609,1715794243840,-296.735644,0.00011886,2]
[327080610,1715794243850,-179.85424468,0.00011887,2]
[327080611,1715794243859,-500.0,0.00011889,2]
[327080612,1715794243868,-500.0,0.00011889,2]
[327080613,1715794243878,-500.0,0.00011889,2]
[327080614,1715794243887,-500.0,0.00011889,2]
[327080615,1715794243896,-10046.03306137,0.0001189,2]
[327080617,1715794243905,-182.34384529,0.0001189,2]
[327080618,1715794243915,-162.94,0.0001189,2]
[327080619,1715794243930,-200.0,0.00011898,2]
[327080621,1715794243939,-1000.0,0.00011898,2]
[327080623,1715794243949,-500.0,0.00011898,2]
[327080625,1715794243959,-500.0,0.00011898,2]
[327080627,1715794243968,-500.0,0.00011898,2]
[327080630,1715794243978,-500.0,0.00011899,2]
[327080632,1715794243988,-500.0,0.00011899,2]
[327080634,1715794243997,-500.0,0.00011899,2]
[327080635,1715794244007,-535.1,0.00011899,2]
[327080636,1715794244016,-231.60342327,0.00011899,2]
[327080637,1715794244025,-839.68,0.00011899,2]
[327080638,1715794244034,-500.0,0.00011899,2]
[327080639,1715794244043,-500.0,0.00011899,2]
[327080640,1715794244053,-247.54451146,0.00011899,2]
[327080641,1715794244062,-500.0,0.00011899,2]
[327080642,1715794244072,-422.64,0.00011899,2]
[327080643,1715794244081,-1561.5,0.00011899,2]
[327080644,1715794244091,-500.0,0.00011899,2]
[327080645,1715794244103,-500.0,0.00011899,2]
[327080646,1715794244112,-500.0,0.00011899,2]
[327080648,1715794244121,-500.0,0.00011899,2]
[327080650,1715794244131,-500.0,0.00011899,2]
[327080652,1715794244140,-717.51,0.00011899,2]
[327080653,1715794244150,-500.0,0.00011899,2]
[327080654,1715794244160,-500.0,0.00011899,2]
[327080655,1715794244170,-500.0,0.00011899,2]
[327080656,1715794244180,-500.0,0.00011899,2]
[327080657,1715794244189,-500.0,0.00011899,2]
[327080658,1715794244199,-500.0,0.00011899,2]
[327080659,1715794244209,-500.0,0.00011899,2]
[327080660,1715794244218,-500.0,0.00011899,2]
[327080661,1715794244227,-500.0,0.00011899,2]
[327080662,1715794244237,-500.0,0.00011899,2]
[327080663,1715794244246,-1041.48,0.00011899,2]
[327080664,1715794244255,-500.0,0.00011899,2]
[327080665,1715794244265,-1165.35,0.00011899,2]
[327080666,1715794244275,-500.0,0.00011899,2]
[327080667,1715794244284,-500.0,0.00011899,2]
[327080668,1715794244297,-500.0,0.00011899,2]
[327080669,1715794244307,-559.08176965,0.00011899,2]
[327080670,1715794244317,-500.0,0.00011899,2]
[327080671,1715794244327,-51769.20154992,0.000119,2]
[327080672,1715794244342,-975.465,0.000119,2]
[327080697,1715794246614,-291.17495364,0.000119,2]
[327080769,1715794321553,155.46,8.924e-05,2]
[327080771,1715794391572,155.0,8.924e-05,2]
[327080773,1715794405545,231.81452124,8.924e-05,2]
[327080774,1715794547803,-204.78018268,0.00010401,2]
[327080775,1715794547823,-157.66029153,0.00010402,2]
[327080776,1715794547842,-37.55952579,0.00010402,2]
[327080777,1715794577933,166.3807111,0.00024,120]
[327080779,1715794867819,155.46,8.665e-05,2]
[327080816,1715795431604,155.46,8.279e-05,2]
[327080817,1715795431618,-401.86960459,0.00010221,2]
[327080818,1715795431627,-204.78018268,0.00010222,2]
[327080819,1715795431638,-1858.1181605,0.00010222,2]
[327080821,1715795431654,-363.09447772,0.00010222,2]
[327080823,1715795431664,-1380.16157324,0.00010223,2]
[327080824,1715795431673,-1366.00838612,0.00010224,2]
[327080825,1715795431684,-155.0,0.00010224,2]
[327080826,1715795431693,-1247.74710897,0.00010224,2]
[327080827,1715795431702,-405.76816591,0.00010225,2]
[327080828,1715795431711,-581.40677926,0.00010226,2]
[327080829,1715795431725,-164.98,0.00010229,2]
[327080830,1715795431735,-921.88,0.00010245,2]
[327080831,1715795431744,-176.21,0.00010249,2]
[327080832,1715795431754,-800.0,0.00010304,2]
[327080833,1715795431763,-150.0,0.00010364,2]
[327080834,1715795431772,-8153.01220498,0.00010367,2]
[327080835,1715795431782,-23900.0,0.00010372,2]
[327080836,1715795431791,-1000.0,0.0001038,2]
[327080837,1715795431801,-1828.52165794,0.00010381,2]
[327080838,1715795431810,-150.0,0.00010384,2]
[327080839,1715795431820,-117.44047421,0.00010402,2]
[327080840,1715795431829,-4594.74275023,0.00010403,2]
[327080841,1715795431839,-158.11,0.00010411,2]
[327080842,1715795431849,-155.71,0.00010483,2]
[327080843,1715795431858,-500.0,0.00010525,2]
[327080844,1715795431868,-250.0,0.00010525,2]
[327080845,1715795431877,-793.94,0.0001058,2]
[327080846,1715795431886,-250.0,0.0001058,2]
[327080847,1715795431896,-200.0,0.00010601,2]
[327080848,1715795431905,-299.99,0.00010936,2]
[327080849,1715795431915,-458.87,0.00010936,2]
[327080850,1715795431925,-150.0,0.00010959,2]
[327080851,1715795431934,-740.18,0.00010959,2]
[327080852,1715795431944,-750.17982827,0.00011,2]
[327080853,1715795431954,-1540.98889293,0.00011,2]
[327080854,1715795431963,-169.49,0.00011025,2]
[327080855,1715795431972,-818.88979131,0.00011139,2]
[327080856,1715795431983,-200.0,0.000113,4]
[327080857,1715795431993,-150.0,0.0001137,2]
[327080858,1715795432002,-150.0,0.0001137,2]
[327080859,1715795432012,-1136.92665667,0.0001138,2]
[327080860,1715795432021,-328.02808541,0.00011387,2]
[327080861,1715795432031,-150.0,0.000114,2]
[327080862,1715795432040,-150.0,0.000114,2]
[327080863,1715795432050,-500.0,0.000114,4]
[327080864,1715795432059,-680.748019,0.00011456,2]
[327080865,1715795432069,-157.052424,0.00011456,2]
[327080866,1715795432079,-1871.883899,0.00011456,2]
[327080867,1715795432088,-193.446385,0.00011456,2]
[327080868,1715795432098,-1515.224687,0.00011456,2]
[327080869,1715795432108,-170.617657,0.00011456,2]
[327080870,1715795432118,-207.3092,0.00011456,2]
[327080871,1715795432128,-167.313494,0.00011456,2]
[327080872,1715795432138,-5615.651697,0.00011456,2]
[327080873,1715795432148,-2042.24406,0.00011456,2]
[327080874,1715795432351,-193.446385,0.00011456,2]
[327080875,1715795432361,-1515.224687,0.00011456,2]
[327080876,1715795432371,-157.716984,0.00011456,2]
[327080877,1715795432381,-1653.245191,0.00011456,2]
[327080878,1715795432391,-207.3092,0.00011456,2]
[327080879,1715795432400,-5301.70274,0.00011456,2]
[327080880,1715795432410,-193.446385,0.00011456,2]
[327080881,1715795432419,-2390.962236,0.00011456,2]
[327080882,1715795432429,-800.0,0.000115,4]
[327080883,1715795432439,-22623.88577628,0.00011589,2]
[327080884,1715795432448,-800.0,0.00011592,2]
[327080885,1715795432458,-639.56516513,0.00011597,2]
[327080886,1715795432468,-680.748019,0.00011599,2]
[327080887,1715795432478,-1871.883899,0.00011599,2]
[327080888,1715795432488,-1515.224687,0.00011599,2]
[327080889,1715795432497,-207.3092,0.00011599,2]
[327080890,1715795432507,-5615.651697,0.00011599,2]
[327080891,1715795432516,-2042.24406,0.00011599,2]
[327080892,1715795432525,-1515.224687,0.00011599,2]
[327080893,1715795432534,-1653.245191,0.00011599,2]
[327080894,1715795432545,-207.3092,0.00011599,2]
[327080895,1715795432554,-5301.70274,0.00011599,2]
[327080896,1715795432564,-2390.962236,0.00011599,2]
[327080897,1715795432573,-1100.0,0.000116,4]
[327080898,1715795432583,-167.313494,0.00011647,2]
[327080899,1715795432593,-157.716984,0.00011647,2]
[327080900,1715795432602,-1619.47981343,0.00011662,2]
[327080901,1715795432611,-1300.0,0.000117,4]
[327080902,1715795432621,-680.748019,0.00011742,2]
[327080903,1715795432630,-157.052424,0.00011742,2]
[327080904,1715795432642,-1871.883899,0.00011742,2]
[327080905,1715795432653,-1515.224687,0.00011742,2]
[327080906,1715795432663,-207.3092,0.00011742,2]
[327080907,1715795432672,-5615.651697,0.00011742,2]
[327080908,1715795432683,-2042.24406,0.00011742,2]
[327080909,1715795432693,-1515.224687,0.00011742,2]
[327080910,1715795432702,-1653.245191,0.00011742,2]
[327080911,1715795432712,-207.3092,0.00011742,2]
[327080912,1715795432722,-5301.70274,0.00011742,2]
[327080913,1715795432733,-193.446385,0.00011742,2]
[327080914,1715795432743,-2390.962236,0.00011742,2]
[327080915,1715795432752,-632.2495,0.0001177,2]
[327080916,1715795432763,-1183.4207,0.0001177,2]
[327080917,1715795432772,-325.75512638,0.00011781,2]
[327080918,1715795432782,-200.0,0.000118,4]
[327080919,1715795432791,-167.313494,0.00011838,2]
[327080920,1715795432801,-157.716984,0.00011838,2]
[327080921,1715795432810,-200.0,0.00011864,2]
[327080922,1715795432820,-191.09971666,0.0001187,2]
[327080923,1715795432830,-151.0,0.0001187,2]
[327080924,1715795432840,-73486.8208,0.0001187,2]
[327080925,1715795432850,-196.71913629,0.00011872,2]
[327080926,1715795432859,-500.0,0.00011877,2]
[327080927,1715795432869,-216.24507965,0.0001188,2]
[327080928,1715795432879,-174.76024922,0.0001188,2]
[327080929,1715795432888,-500.0,0.00011883,2]
[327080930,1715795432898,-500.0,0.00011884,2]
[327080931,1715795432908,-500.0,0.00011884,2]
[327080932,1715795432917,-500.0,0.00011884,2]
[327080933,1715795432927,-500.0,0.00011884,2]
[327080934,1715795432936,-500.0,0.00011884,2]
[327080935,1715795432945,-500.0,0.00011884,2]
[327080936,1715795432955,-216.24507965,0.00011885,2]
[327080937,1715795432964,-680.748019,0.00011886,2]
[327080938,1715795432975,-1871.883899,0.00011886,2]
[327080939,1715795432985,-1515.224687,0.00011886,2]
[327080940,1715795432994,-207.3092,0.00011886,2]
[327080941,1715795433003,-5615.651697,0.00011886,2]
[327080942,1715795433013,-2042.24406,0.00011886,2]
[327080943,1715795433023,-1515.224687,0.00011886,2]
[327080944,1715795433032,-1653.245191,0.00011886,2]
[327080945,1715795433042,-207.3092,0.00011886,2]
[327080946,1715795433051,-5301.70274,0.00011886,2]
[327080947,1715795433060,-2390.962236,0.00011886,2]
[327080948,1715795433070,-500.0,0.00011887,2]
[327080949,1715795433080,-500.0,0.00011887,2]
[327080950,1715795433089,-9482.52202562,0.00011888,2]
[327080951,1715795433098,-500.0,0.00011888,2]
[327080952,1715795433108,-564.21,0.00011888,2]
[327080953,1715795433117,-192.14023099,0.00011888,2]
[327080954,1715795433126,-500.0,0.00011888,2]
[327080955,1715795433136,-500.0,0.00011888,2]
[327080956,1715795433145,-552.45294119,0.00011888,2]
[327080957,1715795433154,-480.1494943,0.00011888,2]
[327080958,1715795433164,-500.0,0.00011888,2]
[327080959,1715795433174,-500.0,0.00011888,2]
[327080960,1715795433184,-500.0,0.00011888,2]
[327080961,1715795433193,-536.95226347,0.00011888,2]
[327080962,1715795433202,-500.0,0.00011888,2]
[327080963,1715795433212,-500.0,0.00011888,2]
[327080964,1715795433222,-500.0,0.00011888,2]
[327080965,1715795433232,-627.18,0.00011888,2]